[Event "Allsvenskan Div I 3 2023/2024: SS Manhem - Varbergs SK"]
[Site "Goteborgs Schackcentrum, Vegatan 20, Gothenburg, Sweden"]
[Date "2024.03.17"]
[Round "1.5"]
[White "Sternerzon, Anders"]
[Black "Lundstrom, Mattias"]
[Result "1/2-1/2"]
[TimeControl "90 minutes for 40 moves + 30 minutes for the rest of the game + 30 seconds per move from move one."]
[WhiteFideId "1740849"]
[BlackFideId "1703536"]
[WhiteElo "1718"]
[BlackElo "2132"]

1. Nf3 {[%clk 01:30:47]} {[%emt 00:00:12]} d5 {[%clk 01:30:28]} {[%emt
00:00:33]} 2. d4 {[%clk 01:30:57]} {[%emt 00:00:20]} Nf6 {[%clk 01:30:49]}
{[%emt 00:00:08]} 3. c4 {[%clk 01:30:46]} {[%emt 00:00:42]} c6 {[%clk
01:29:48]} {[%emt 00:01:30]} 4. cxd5 {[%clk 01:29:30]} {[%emt 00:01:47]} cxd5
{[%clk 01:30:06]} {[%emt 00:00:12]} 5. Nc3 {[%clk 01:29:52]} {[%emt 00:00:07]}
e6 {[%clk 01:27:35]} {[%emt 00:03:02]} 6. Bf4 {[%clk 01:29:43]} {[%emt
00:00:39]} a6 {[%clk 01:27:19]} {[%emt 00:00:45]} 7. e3 {[%clk 01:29:45]}
{[%emt 00:00:29]} Nc6 {[%clk 01:26:44]} {[%emt 00:01:05]} 8. Bd3 {[%clk
01:27:48]} {[%emt 00:02:26]} Be7 {[%clk 01:25:07]} {[%emt 00:02:07]} 9. h3
{[%clk 01:25:57]} {[%emt 00:02:21]} b5 {[%clk 01:21:58]} {[%emt 00:03:39]} 10.
O-O {[%clk 01:13:59]} {[%emt 00:12:28]} Bb7 {[%clk 01:19:44]} {[%emt 00:02:44]}
11. Ne5 {[%clk 01:08:22]} {[%emt 00:06:08]} Nxe5 {[%clk 01:14:10]} {[%emt
00:06:04]} 12. Bxe5 {[%clk 01:07:35]} {[%emt 00:01:17]} O-O {[%clk 01:06:27]}
{[%emt 00:08:14]} 13. a3 {[%clk 01:04:14]} {[%emt 00:03:50]} Re8 {[%clk
01:02:20]} {[%emt 00:04:38]} 14. Rc1 {[%clk 00:57:01]} {[%emt 00:07:43]} Rc8
{[%clk 00:56:06]} {[%emt 00:06:43]} 15. Bb1 {[%clk 00:53:20]} {[%emt 00:04:11]}
Nd7 {[%clk 00:51:42]} {[%emt 00:04:55]} 16. Bg3 {[%clk 00:52:47]} {[%emt
00:01:03]} Nf8 {[%clk 00:50:34]} {[%emt 00:01:37]} 17. Ne2 {[%clk 00:49:09]}
{[%emt 00:04:09]} Rxc1 {[%clk 00:49:00]} {[%emt 00:02:02]} 18. Nxc1 {[%clk
00:48:14]} {[%emt 00:01:27]} Bd6 {[%clk 00:48:35]} {[%emt 00:00:54]} 19. Bxd6
{[%clk 00:47:34]} {[%emt 00:01:06]} Qxd6 {[%clk 00:49:03]} {[%emt 00:00:07]} 20.
Nd3 {[%clk 00:47:38]} {[%emt 00:00:25]} Nd7 {[%clk 00:48:05]} {[%emt 00:01:28]}
21. Qe2 {[%clk 00:38:59]} {[%emt 00:09:09]} Nb6 {[%clk 00:34:58]} {[%emt
00:13:37]} 22. Nc5 {[%clk 00:34:55]} {[%emt 00:04:33]} Bc8 {[%clk 00:34:21]}
{[%emt 00:01:08]} 23. Qc2 {[%clk 00:33:05]} {[%emt 00:02:20]} g6 {[%clk
00:34:24]} {[%emt 00:00:28]} 24. Qc1 {[%clk 00:22:58]} {[%emt 00:10:36]} Kg7
{[%clk 00:27:26]} {[%emt 00:07:29]} 25. b3 {[%clk 00:21:50]} {[%emt 00:01:38]}
Nd7 {[%clk 00:23:27]} {[%emt 00:04:28]} 26. Nxd7 {[%clk 00:20:20]} {[%emt
00:02:00]} Bxd7 {[%clk 00:23:50]} {[%emt 00:00:07]} 27. Qb2 {[%clk 00:19:41]}
{[%emt 00:01:09]} b4 {[%clk 00:16:56]} {[%emt 00:07:24]} 28. a4 {[%clk
00:19:12]} {[%emt 00:00:59]} Rc8 {[%clk 00:12:08]} {[%emt 00:05:19]} 29. Rc1
{[%clk 00:19:06]} {[%emt 00:00:35]} Rc6 {[%clk 00:09:41]} {[%emt 00:02:57]} 30.
Rxc6 {[%clk 00:16:04]} {[%emt 00:03:31]} Qxc6 {[%clk 00:10:04]} {[%emt
00:00:09]} 31. Qc2 {[%clk 00:15:26]} {[%emt 00:01:08]} Qxc2 {[%clk 00:08:48]}
{[%emt 00:01:45]} 32. Bxc2 {[%clk 00:15:51]} {[%emt 00:00:06]} a5 {[%clk
00:09:08]} {[%emt 00:00:09]} 33. Kf1 {[%clk 00:15:15]} {[%emt 00:01:06]}
1/2-1/2

[ePGN "0.1;DGT LiveChess/2.2.6"]

[Event "Allsvenskan Div I 3 2023/2024: SS Manhem - Varbergs SK"]
[Site "Goteborgs Schackcentrum, Vegatan 20, Gothenburg, Sweden"]
[Date "2024.03.17"]
[Round "1.6"]
[White "Lindholm, Gustav"]
[Black "Lennermo, Viktor"]
[Result "1-0"]
[TimeControl "90 minutes for 40 moves + 30 minutes for the rest of the game + 30 seconds per move from move one."]
[WhiteFideId "1736515"]
[BlackFideId "1776398"]
[WhiteElo "2141"]
[BlackElo "1697"]

1. d4 {[%clk 01:30:56]} {[%emt 00:00:02]} Nf6 {[%clk 01:30:57]} {[%emt
00:00:04]} 2. c4 {[%clk 01:31:21]} {[%emt 00:00:06]} e6 {[%clk 01:31:17]}
{[%emt 00:00:10]} 3. Nf3 {[%clk 01:31:43]} {[%emt 00:00:07]} d5 {[%clk
01:31:36]} {[%emt 00:00:11]} 4. Nc3 {[%clk 01:32:09]} {[%emt 00:00:05]} c5
{[%clk 01:31:05]} {[%emt 00:01:00]} 5. cxd5 {[%clk 01:32:24]} {[%emt 00:00:16]}
Nxd5 {[%clk 01:30:52]} {[%emt 00:00:43]} 6. e4 {[%clk 01:31:30]} {[%emt
00:01:24]} Nxc3 {[%clk 01:31:11]} {[%emt 00:00:11]} 7. bxc3 {[%clk 01:31:54]}
{[%emt 00:00:05]} cxd4 {[%clk 01:31:23]} {[%emt 00:00:18]} 8. cxd4 {[%clk
01:32:17]} {[%emt 00:00:08]} Bb4+ {[%clk 01:31:46]} {[%emt 00:00:06]} 9. Bd2
{[%clk 01:31:38]} {[%emt 00:01:09]} Bxd2+ {[%clk 01:32:13]} {[%emt 00:00:03]}
10. Qxd2 {[%clk 01:31:48]} {[%emt 00:00:20]} O-O {[%clk 01:32:33]} {[%emt
00:00:10]} 11. Bc4 {[%clk 01:26:49]} {[%emt 00:05:30]} b6 {[%clk 01:32:50]}
{[%emt 00:00:13]} 12. O-O {[%clk 01:26:54]} {[%emt 00:00:25]} Bb7 {[%clk
01:33:13]} {[%emt 00:00:06]} 13. Qe3 {[%clk 01:23:52]} {[%emt 00:03:30]} Nd7
{[%clk 01:31:56]} {[%emt 00:01:49]} 14. Rfd1 {[%clk 01:20:56]} {[%emt
00:03:25]} Nf6 {[%clk 01:32:11]} {[%emt 00:00:16]} 15. Bd3 {[%clk 01:20:58]}
{[%emt 00:00:28]} Rc8 {[%clk 01:21:07]} {[%emt 00:11:34]} 16. Nd2 {[%clk
01:11:44]} {[%emt 00:09:45]} Re8 {[%clk 01:11:52]} {[%emt 00:09:44]} 17. e5
{[%clk 01:08:38]} {[%emt 00:03:36]} Nd7 {[%clk 01:01:01]} {[%emt 00:11:21]} 18.
Nc4 {[%clk 01:07:32]} {[%emt 00:01:35]} Rc7 {[%clk 00:54:34]} {[%emt 00:06:58]}
19. Nd6 {[%clk 01:04:56]} {[%emt 00:03:06]} Re7 {[%clk 00:54:56]} {[%emt
00:00:09]} 20. Nxb7 {[%clk 01:05:19]} {[%emt 00:00:06]} Rxb7 {[%clk 00:55:11]}
{[%emt 00:00:15]} 21. Qe4 {[%clk 01:05:45]} {[%emt 00:00:04]} Nf8 {[%clk
00:55:37]} {[%emt 00:00:04]} 22. f4 {[%clk 01:04:50]} {[%emt 00:01:26]} Rbd7
{[%clk 00:51:16]} {[%emt 00:04:50]} 23. Bb5 {[%clk 01:04:18]} {[%emt 00:01:01]}
Rc7 {[%clk 00:48:39]} {[%emt 00:03:08]} 24. f5 {[%clk 00:57:02]} {[%emt
00:07:46]} exf5 {[%clk 00:47:22]} {[%emt 00:01:47]} 25. Qxf5 {[%clk 00:57:20]}
{[%emt 00:00:12]} Qc8 {[%clk 00:43:49]} {[%emt 00:04:03]} 26. Qe4 {[%clk
00:55:36]} {[%emt 00:02:12]} Qe6 {[%clk 00:36:21]} {[%emt 00:08:00]} 27. Ba4
{[%clk 00:53:51]} {[%emt 00:02:15]} Nd7 {[%clk 00:33:25]} {[%emt 00:03:26]} 28.
d5 {[%clk 00:46:49]} {[%emt 00:07:34]} Qxe5 {[%clk 00:29:14]} {[%emt 00:04:41]}
29. Qxe5 {[%clk 00:46:49]} {[%emt 00:00:30]} Rxe5 {[%clk 00:29:21]} {[%emt
00:00:22]} 30. d6 {[%clk 00:47:12]} {[%emt 00:00:07]} Rb7 {[%clk 00:26:07]}
{[%emt 00:03:44]} 31. Bc6 {[%clk 00:47:31]} {[%emt 00:00:11]} Nc5 {[%clk
00:26:32]} {[%emt 00:00:06]} 32. Bxb7 {[%clk 00:47:23]} {[%emt 00:00:37]} Nxb7
{[%clk 00:27:00]} {[%emt 00:00:02]} 33. Rac1 {[%clk 00:46:48]} {[%emt
00:01:05]} Rc5 {[%clk 00:22:55]} {[%emt 00:04:35]} 34. d7 {[%clk 00:46:13]}
{[%emt 00:01:05]} Rxc1 {[%clk 00:21:46]} {[%emt 00:01:39]} 35. Rxc1 {[%clk
00:46:27]} {[%emt 00:00:16]} Kf8 {[%clk 00:22:03]} {[%emt 00:00:13]} 36. Re1
{[%clk 00:46:49]} 1-0

[ePGN "0.1;DGT LiveChess/2.2.6"]

[Event "Allsvenskan Div I 3 2023/2024: SS Manhem - Varbergs SK"]
[Site "Goteborgs Schackcentrum, Vegatan 20, Gothenburg, Sweden"]
[Date "2024.03.17"]
[Round "1.7"]
[White "Persson, Michael"]
[Black "Bengtsson, Jonas"]
[Result "0-1"]
[TimeControl "90 minutes for 40 moves + 30 minutes for the rest of the game + 30 seconds per move from move one."]
[WhiteFideId "1764179"]
[BlackFideId "1715135"]
[WhiteElo "1297"]
[BlackElo "2000"]

1. d4 {[%clk 01:30:55]} {[%emt 00:00:05]} Nf6 {[%clk 01:30:55]} {[%emt
00:00:06]} 2. c4 {[%clk 01:31:17]} {[%emt 00:00:08]} e6 {[%clk 01:31:21]}
{[%emt 00:00:04]} 3. Nc3 {[%clk 01:31:37]} {[%emt 00:00:09]} Bb4 {[%clk
01:31:46]} {[%emt 00:00:05]} 4. Bd2 {[%clk 01:31:54]} {[%emt 00:00:14]} O-O
{[%clk 01:32:10]} {[%emt 00:00:06]} 5. e3 {[%clk 01:32:17]} {[%emt 00:00:07]}
d5 {[%clk 01:32:28]} {[%emt 00:00:11]} 6. Nf3 {[%clk 01:32:34]} {[%emt
00:00:13]} b6 {[%clk 01:30:07]} {[%emt 00:02:51]} 7. cxd5 {[%clk 01:31:15]}
{[%emt 00:01:49]} exd5 {[%clk 01:30:31]} {[%emt 00:00:06]} 8. Be2 {[%clk
01:30:27]} {[%emt 00:01:18]} Bb7 {[%clk 01:30:51]} {[%emt 00:00:10]} 9. O-O
{[%clk 01:30:47]} {[%emt 00:00:10]} a6 {[%clk 01:30:53]} {[%emt 00:00:29]} 10.
Rc1 {[%clk 01:29:18]} {[%emt 00:01:59]} Re8 {[%clk 01:29:03]} {[%emt 00:02:20]}
11. Qc2 {[%clk 01:27:08]} {[%emt 00:02:39]} Nbd7 {[%clk 01:26:53]} {[%emt
00:02:40]} 12. Bd3 {[%clk 01:22:47]} {[%emt 00:04:51]} Bd6 {[%clk 01:25:30]}
{[%emt 00:01:53]} 13. Rfe1 {[%clk 01:14:52]} {[%emt 00:08:25]} Ne4 {[%clk
01:25:00]} {[%emt 00:01:00]} 14. Ne2 {[%clk 01:14:32]} {[%emt 00:00:50]} f5
{[%clk 01:19:41]} {[%emt 00:05:50]} 15. Ng3 {[%clk 01:13:11]} {[%emt 00:01:50]}
Qf6 {[%clk 01:18:32]} {[%emt 00:01:39]} 16. a3 {[%clk 01:08:49]} {[%emt
00:04:53]} Rac8 {[%clk 01:16:39]} {[%emt 00:02:22]} 17. Bb4 {[%clk 01:06:26]}
{[%emt 00:02:52]} c5 {[%clk 01:15:51]} {[%emt 00:01:19]} 18. dxc5 {[%clk
01:06:06]} {[%emt 00:00:50]} bxc5 {[%clk 01:15:38]} {[%emt 00:00:43]} 19. Bc3
{[%clk 01:04:51]} {[%emt 00:01:45]} Qf8 {[%clk 01:09:18]} {[%emt 00:06:50]} 20.
Qb3 {[%clk 00:57:03]} {[%emt 00:08:18]} Rb8 {[%clk 01:05:46]} {[%emt 00:04:02]}
21. Qc2 {[%clk 00:57:28]} {[%emt 00:00:06]} g6 {[%clk 01:02:25]} {[%emt
00:03:51]} 22. Qd1 {[%clk 00:53:36]} {[%emt 00:04:19]} Ndf6 {[%clk 00:59:51]}
{[%emt 00:03:06]} 23. Qc2 {[%clk 00:40:38]} {[%emt 00:13:29]} Ng4 {[%clk
00:56:40]} {[%emt 00:03:41]} 24. Bxe4 {[%clk 00:38:36]} {[%emt 00:02:31]} fxe4
{[%clk 00:56:37]} {[%emt 00:00:33]} 25. Ng5 {[%clk 00:37:24]} {[%emt 00:01:40]}
Qh6 {[%clk 00:54:45]} {[%emt 00:02:24]} 26. Nh3 {[%clk 00:36:32]} {[%emt
00:01:22]} Rf8 {[%clk 00:51:56]} {[%emt 00:03:19]} 27. Re2 {[%clk 00:33:26]}
{[%emt 00:03:35]} Rf7 {[%clk 00:46:59]} {[%emt 00:05:27]} 28. Rd1 {[%clk
00:29:42]} {[%emt 00:04:14]} Rbf8 {[%clk 00:44:37]} {[%emt 00:02:53]} 29. Be1
{[%clk 00:24:39]} {[%emt 00:05:32]} g5 {[%clk 00:42:52]} {[%emt 00:02:16]} 30.
Qb3 {[%clk 00:23:31]} {[%emt 00:01:38]} Nxh2 {[%clk 00:37:46]} {[%emt
00:05:36]} 31. Rxd5 {[%clk 00:21:42]} {[%emt 00:02:19]} Bxd5 {[%clk 00:37:47]}
{[%emt 00:00:29]} 32. Qxd5 {[%clk 00:22:06]} {[%emt 00:00:06]} Bxg3 {[%clk
00:38:06]} {[%emt 00:00:11]} 33. Nxg5 {[%clk 00:18:22]} {[%emt 00:04:14]} Nf3+
{[%clk 00:34:58]} {[%emt 00:03:38]} 34. Nxf3 {[%clk 00:15:44]} {[%emt
00:03:08]} exf3 {[%clk 00:35:21]} {[%emt 00:00:07]} 35. fxg3 {[%clk 00:15:04]}
{[%emt 00:01:10]} fxe2 {[%clk 00:35:44]} {[%emt 00:00:07]} 36. e4 {[%clk
00:14:11]} {[%emt 00:01:24]} Qe3+ {[%clk 00:34:57]} {[%emt 00:01:16]} 37. Kh2
{[%clk 00:14:19]} {[%emt 00:00:22]} Qd4 {[%clk 00:35:03]} {[%emt 00:00:25]} 38.
Qe6 {[%clk 00:13:36]} {[%emt 00:01:12]} Qxb2 {[%clk 00:32:58]} {[%emt
00:02:36]} 39. a4 {[%clk 00:12:05]} {[%emt 00:02:00]} Qa1 {[%clk 00:29:40]}
{[%emt 00:03:48]} 40. Qg4+ {[%clk 00:11:09]} {[%emt 00:01:26]} Qg7 {[%clk
00:30:03]} {[%emt 00:00:07]} 41. Qe6 {[%clk 00:11:09]} {[%emt 00:00:30]} Qg6
{[%clk 00:30:01]} {[%emt 00:00:32]} 42. Qc4 {[%clk 00:11:08]} {[%emt 00:00:31]}
Re8 {[%clk 00:29:00]} {[%emt 00:01:31]} 43. Qd5 {[%clk 00:06:42]} {[%emt
00:04:56]} Qxe4 {[%clk 00:28:50]} {[%emt 00:00:40]} 44. Qg5+ {[%clk 00:06:21]}
{[%emt 00:00:51]} Qg6 {[%clk 00:26:32]} {[%emt 00:02:47]} 45. Qd5 {[%clk
00:06:07]} {[%emt 00:00:45]} Re6 {[%clk 00:26:46]} {[%emt 00:00:17]} 46. Qd8+
{[%clk 00:04:47]} {[%emt 00:01:50]} Rf8 {[%clk 00:26:58]} {[%emt 00:00:17]} 47.
Qd5 {[%clk 00:03:46]} {[%emt 00:01:31]} Qh6+ {[%clk 00:27:19]} {[%emt
00:00:09]} 48. Kg1 {[%clk 00:04:01]} {[%emt 00:00:15]} Rf1# {[%clk 00:27:14]}
{[%emt 00:00:05]} 0-1

[ePGN "0.1;DGT LiveChess/2.2.6"]

[Event "Allsvenskan Div I 3 2023/2024: SS Manhem - Varbergs SK"]
[Site "Goteborgs Schackcentrum, Vegatan 20, Gothenburg, Sweden"]
[Date "2024.03.17"]
[Round "1.8"]
[White "Gallardo, Guillermo"]
[Black "Persson, Linus"]
[Result "1/2-1/2"]
[TimeControl "90 minutes for 40 moves + 30 minutes for the rest of the game + 30 seconds per move from move one."]
[WhiteFideId "1773488"]
[BlackFideId "1779869"]
[WhiteElo "1674"]
[BlackElo "1517"]

1. c4 {[%clk 01:30:55]} {[%emt 00:00:04]} Nf6 {[%clk 01:30:28]} {[%emt
00:00:32]} 2. Nf3 {[%clk 01:30:40]} {[%emt 00:00:45]} g6 {[%clk 01:30:24]}
{[%emt 00:00:34]} 3. g3 {[%clk 01:30:31]} {[%emt 00:00:40]} Bg7 {[%clk
01:30:19]} {[%emt 00:00:34]} 4. Bg2 {[%clk 01:30:28]} {[%emt 00:00:33]} d6
{[%clk 01:28:50]} {[%emt 00:01:58]} 5. Nc3 {[%clk 01:29:38]} {[%emt 00:01:20]}
O-O {[%clk 01:28:33]} {[%emt 00:00:47]} 6. O-O {[%clk 01:29:39]} {[%emt
00:00:30]} c6 {[%clk 01:26:29]} {[%emt 00:02:33]} 7. d3 {[%clk 01:26:42]}
{[%emt 00:03:27]} e5 {[%clk 01:24:24]} {[%emt 00:02:35]} 8. e4 {[%clk
01:25:28]} {[%emt 00:01:45]} h6 {[%clk 01:21:24]} {[%emt 00:03:30]} 9. Rb1
{[%clk 01:20:45]} {[%emt 00:05:13]} a5 {[%clk 01:20:37]} {[%emt 00:01:16]} 10.
a3 {[%clk 01:16:43]} {[%emt 00:04:32]} Na6 {[%clk 01:11:22]} {[%emt 00:09:45]}
11. b4 {[%clk 01:12:01]} {[%emt 00:05:12]} axb4 {[%clk 01:08:49]} {[%emt
00:03:03]} 12. axb4 {[%clk 01:12:02]} {[%emt 00:00:30]} Nc7 {[%clk 01:04:54]}
{[%emt 00:04:25]} 13. Be3 {[%clk 01:02:41]} {[%emt 00:09:51]} Be6 {[%clk
00:55:55]} {[%emt 00:09:28]} 14. Qd2 {[%clk 00:52:31]} {[%emt 00:10:40]} Kh7
{[%clk 00:53:16]} {[%emt 00:03:08]} 15. b5 {[%clk 00:41:09]} {[%emt 00:11:53]}
c5 {[%clk 00:45:44]} {[%emt 00:08:02]} 16. h3 {[%clk 00:36:09]} {[%emt
00:05:31]} b6 {[%clk 00:41:28]} {[%emt 00:04:45]} 17. Ra1 {[%clk 00:31:55]}
{[%emt 00:04:44]} Qe7 {[%clk 00:38:30]} {[%emt 00:03:28]} 18. Qb2 {[%clk
00:30:34]} {[%emt 00:01:51]} Nd7 {[%clk 00:32:33]} {[%emt 00:06:27]} 19. Nd5
{[%clk 00:23:32]} {[%emt 00:07:32]} Bxd5 {[%clk 00:32:23]} {[%emt 00:00:40]} 20.
cxd5 {[%clk 00:23:25]} {[%emt 00:00:38]} f5 {[%clk 00:28:59]} {[%emt 00:03:54]}
21. Rxa8 {[%clk 00:21:12]} {[%emt 00:02:42]} Rxa8 {[%clk 00:28:28]} {[%emt
00:01:00]} 22. Bd2 {[%clk 00:17:11]} {[%emt 00:04:31]} fxe4 {[%clk 00:20:07]}
{[%emt 00:08:52]} 23. dxe4 {[%clk 00:16:37]} {[%emt 00:01:05]} Nf6 {[%clk
00:15:23]} {[%emt 00:05:14]} 24. Nh2 {[%clk 00:12:40]} {[%emt 00:04:27]} Qd7
{[%clk 00:12:56]} {[%emt 00:02:56]} 25. Rb1 {[%clk 00:11:47]} {[%emt 00:01:24]}
Ng8 {[%clk 00:11:37]} {[%emt 00:01:48]} 26. Bf1 {[%clk 00:09:46]} {[%emt
00:02:32]} Ne7 {[%clk 00:09:50]} {[%emt 00:02:16]} 27. Qb3 {[%clk 00:08:44]}
{[%emt 00:01:33]} Ng8 {[%clk 00:07:18]} {[%emt 00:03:01]} 28. Qf3 {[%clk
00:06:40]} {[%emt 00:02:35]} Nf6 {[%clk 00:06:18]} {[%emt 00:01:30]} 29. Ng4
{[%clk 00:04:46]} {[%emt 00:02:25]} Nxg4 {[%clk 00:06:23]} {[%emt 00:00:25]} 30.
Qxg4 {[%clk 00:04:10]} {[%emt 00:01:06]} Qe8 {[%clk 00:06:09]} {[%emt
00:00:42]} 31. h4 {[%clk 00:03:47]} {[%emt 00:00:54]} Ra4 {[%clk 00:05:20]}
{[%emt 00:01:19]} 32. Qe2 {[%clk 00:02:21]} {[%emt 00:01:56]} Qd7 {[%clk
00:04:46]} {[%emt 00:01:04]} 33. Kh2 {[%clk 00:02:42]} {[%emt 00:00:10]} Ne8
{[%clk 00:02:45]} {[%emt 00:02:30]} 34. Bh3 {[%clk 00:02:56]} {[%emt 00:00:17]}
Qa7 {[%clk 00:02:45]} {[%emt 00:00:29]} 35. h5 {[%clk 00:02:28]} {[%emt
00:00:59]} g5 {[%clk 00:02:17]} {[%emt 00:00:57]} 36. Qf3 {[%clk 00:02:09]}
{[%emt 00:00:50]} Nf6 {[%clk 00:01:29]} {[%emt 00:01:16]} 37. Qf5+ {[%clk
00:01:56]} {[%emt 00:00:44]} Kh8 {[%clk 00:01:19]} {[%emt 00:00:40]} 38. Qc8+
{[%clk 00:02:02]} {[%emt 00:00:24]} Ng8 {[%clk 00:01:17]} {[%emt 00:00:31]} 39.
Be6 {[%clk 00:02:09]} {[%emt 00:00:23]} Qa8 {[%clk 00:01:25]} {[%emt 00:00:23]}
40. Qd7 {[%clk 00:00:45]} {[%emt 00:01:54]} Nf6 {[%clk 00:00:45]} {[%emt
00:01:10]} 41. Qf7 {[%clk 00:21:34]} {[%emt 00:09:41]} Nxe4 {[%clk 00:24:11]}
{[%emt 00:07:04]} 42. Qg6 {[%clk 00:16:18]} {[%emt 00:05:46]} Qf8 {[%clk
00:12:03]} {[%emt 00:12:37]} 43. Bf5 {[%clk 00:13:39]} {[%emt 00:03:10]} Nf6
{[%clk 00:12:12]} {[%emt 00:00:20]} 44. Kg2 {[%clk 00:08:44]} {[%emt 00:05:26]}
Qe8 {[%clk 00:10:54]} {[%emt 00:01:47]} 45. Qxe8+ {[%clk 00:08:38]} {[%emt
00:00:36]} Nxe8 {[%clk 00:11:19]} {[%emt 00:00:06]} 46. Bg6 {[%clk 00:04:45]}
{[%emt 00:04:23]} Nf6 {[%clk 00:07:13]} {[%emt 00:04:36]} 47. Bf7 {[%clk
00:04:11]} {[%emt 00:01:04]} Ne4 {[%clk 00:06:51]} {[%emt 00:00:51]} 48. Be3
{[%clk 00:03:51]} {[%emt 00:00:51]} Bf8 {[%clk 00:05:13]} {[%emt 00:02:06]} 49.
Kf3 {[%clk 00:03:17]} {[%emt 00:01:06]} Kg7 {[%clk 00:05:15]} {[%emt 00:00:28]}
50. Be8 {[%clk 00:03:39]} {[%emt 00:00:08]} Nc3 {[%clk 00:04:54]} {[%emt
00:00:50]} 51. Rh1 {[%clk 00:02:24]} {[%emt 00:01:47]} Nxd5 {[%clk 00:03:24]}
{[%emt 00:01:59]} 52. Bc6 {[%clk 00:02:07]} {[%emt 00:00:47]} Nxe3 {[%clk
00:02:51]} {[%emt 00:01:03]} 53. fxe3 {[%clk 00:02:34]} {[%emt 00:00:03]} Kf6
{[%clk 00:02:41]} {[%emt 00:00:40]} 54. e4 {[%clk 00:02:09]} {[%emt 00:00:55]}
Ra3+ {[%clk 00:02:27]} {[%emt 00:00:44]} 55. Kg4 {[%clk 00:02:20]} {[%emt
00:00:19]} c4 {[%clk 00:01:03]} {[%emt 00:01:54]} 56. Rf1+ {[%clk 00:02:26]}
{[%emt 00:00:24]} Ke7 {[%clk 00:01:10]} {[%emt 00:00:23]} 57. Bd5 {[%clk
00:02:52]} {[%emt 00:00:05]} c3 {[%clk 00:01:23]} {[%emt 00:00:16]} 58. Rf7+
{[%clk 00:02:51]} {[%emt 00:00:31]} Ke8 {[%clk 00:01:46]} {[%emt 00:00:07]} 59.
Rc7 {[%clk 00:02:44]} {[%emt 00:00:37]} Be7 {[%clk 00:00:55]} {[%emt 00:01:20]}
60. Kf5 {[%clk 00:02:15]} {[%emt 00:01:00]} c2 {[%clk 00:00:44]} {[%emt
00:00:42]} 61. Rc8+ {[%clk 00:01:12]} {[%emt 00:01:33]} Bd8 {[%clk 00:00:57]}
{[%emt 00:00:16]} 62. Rxc2 {[%clk 00:01:01]} {[%emt 00:00:41]} Rxg3 {[%clk
00:00:54]} {[%emt 00:00:33]} 63. Kg6 {[%clk 00:01:08]} {[%emt 00:00:23]} Rf3
{[%clk 00:00:50]} {[%emt 00:00:34]} 64. Kxh6 {[%clk 00:01:23]} {[%emt
00:00:15]} g4 {[%clk 00:00:57]} {[%emt 00:00:24]} 65. Rg2 {[%clk 00:01:02]}
{[%emt 00:00:50]} g3 {[%clk 00:01:12]} {[%emt 00:00:15]} 66. Kg7 {[%clk
00:01:14]} {[%emt 00:00:18]} Bf6+ {[%clk 00:01:22]} {[%emt 00:00:21]} 67. Kg6
{[%clk 00:01:38]} {[%emt 00:00:06]} Kf8 {[%clk 00:00:47]} {[%emt 00:01:04]} 68.
h6 {[%clk 00:02:01]} {[%emt 00:00:08]} Ke7 {[%clk 00:00:37]} {[%emt 00:00:40]}
69. h7 {[%clk 00:01:38]} {[%emt 00:00:53]} Bh8 {[%clk 00:01:00]} {[%emt
00:00:07]} 70. Kg5 {[%clk 00:01:10]} {[%emt 00:00:58]} Kf8 {[%clk 00:01:07]}
{[%emt 00:00:23]} 71. Kg4 {[%clk 00:01:10]} {[%emt 00:00:29]} Rf6 {[%clk
00:01:23]} {[%emt 00:00:14]} 72. Rxg3 {[%clk 00:00:50]} {[%emt 00:00:50]} Rg6+
{[%clk 00:00:50]} {[%emt 00:01:03]} 73. Kf3 {[%clk 00:00:52]} {[%emt 00:00:28]}
Kg7 {[%clk 00:00:56]} {[%emt 00:00:25]} 74. Rxg6+ {[%clk 00:01:05]} {[%emt
00:00:17]} Kxg6 {[%clk 00:01:18]} {[%emt 00:00:07]} 75. Bg8 {[%clk 00:01:25]}
{[%emt 00:00:10]} Bf6 {[%clk 00:01:11]} {[%emt 00:00:37]} 76. Ke3 {[%clk
00:01:26]} {[%emt 00:00:30]} Kg7 {[%clk 00:01:15]} {[%emt 00:00:25]} 77. Kd3
{[%clk 00:01:45]} {[%emt 00:00:12]} Bh4 {[%clk 00:01:39]} {[%emt 00:00:05]}
1/2-1/2